lending/lending_fUSD_20241229
["ID","MTS","AMOUNT","RATE_DAILY","PERIOD"]
[347111292,1735501880895,-501.86,0.00019569,2]
[347111293,1735501880904,-705.51,0.00019569,2]
[347111294,1735501880914,-3016.44,0.00019569,2]
[347111295,1735501880923,-965.04,0.00019569,2]
[347111296,1735501880933,-687.22,0.00019569,2]
[347111297,1735501880943,-2182.7,0.00019569,2]
[347111298,1735501880952,-500.0,0.00019569,2]
[347111299,1735501880961,-886.22,0.00019569,2]
[347111300,1735501880972,-1103.62,0.00019569,2]
[347111301,1735501880982,-1816.86,0.00019569,2]
[347111302,1735501880991,-596.4855418,0.0001958,2]
[347111303,1735501881001,-5088.81,0.00019591,2]
[347111304,1735501881010,-38291.0,0.000196,2]
[347111305,1735501881020,-633.79,0.00019615,2]
[347111306,1735501881030,-168.04950212,0.00019627,2]
[347111307,1735501881040,-500.0,0.00019644,2]
[347111308,1735501881049,-500.0,0.00019644,2]
[347111309,1735501881059,-500.0,0.00019644,2]
[347111310,1735501881069,-754.31,0.00019644,2]
[347111311,1735501881078,-606.97,0.00019644,2]
[347111312,1735501881088,-421.67,0.00019644,2]
[347111313,1735501881098,-290.11,0.00019644,2]
[347111314,1735501881108,-500.0,0.00019644,2]
[347111315,1735501881118,-500.0,0.00019644,2]
[347111316,1735501881128,-500.0,0.00019644,2]
[347111317,1735501881138,-500.0,0.00019644,2]
[347111318,1735501881147,-500.0,0.00019644,2]
[347111319,1735501881157,-1814.14,0.00019645,2]
[347111320,1735501881167,-256.376846,0.00019645,2]
[347111321,1735501881176,-223.804878,0.00019645,2]
[347111322,1735501881186,-500.0,0.00019645,2]
[347111323,1735501881195,-2173.53,0.00019645,2]
[347111324,1735501881205,-500.0,0.00019645,2]
[347111325,1735501881215,-516.95,0.00019645,2]
[347111326,1735501881224,-538.76,0.00019645,2]
[347111327,1735501881233,-500.0,0.00019645,2]
[347111328,1735501881243,-500.0,0.00019645,2]
[347111329,1735501881252,-1499.28,0.00019645,2]
[347111330,1735501881262,-562.09,0.00019646,2]
[347111331,1735501881271,-500.0,0.00019646,2]
[347111332,1735501881280,-1185.67,0.00019646,2]
[347111333,1735501881290,-500.0,0.00019646,2]
[347111334,1735501881299,-1311.98,0.00019646,2]
[347111335,1735501881309,-500.0,0.00019646,2]
[347111336,1735501881319,-1093.12,0.00019646,2]
[347111337,1735501881328,-500.0,0.00019648,2]
[347111338,1735501881337,-609.96,0.00019648,2]
[347111339,1735501881346,-1966.04,0.00019648,2]
[347111340,1735501881355,-298.21,0.00019648,2]
[347111341,1735501881365,-2075.34,0.00019648,2]
[347111342,1735501881374,-459.04,0.00019648,2]
[347111343,1735501881383,-567.22,0.00019648,2]
[347111344,1735501881393,-634.86,0.00019648,2]
[347111345,1735501881402,-796.83,0.00019648,2]
[347111346,1735501881412,-150.0,0.00019683,2]
[347111347,1735501881422,-1000.0,0.00019695,2]
[347111348,1735501881431,-173.0,0.00019759,2]
[347111349,1735501881440,-212.0,0.00019768,2]
[347111350,1735501881450,-212.59,0.00019768,2]
[347111351,1735501881460,-500.0,0.0001983,2]
[347111352,1735501881472,-500.0,0.00019839,2]
[347111353,1735501881482,-520.88,0.00019843,2]
[347111354,1735501881492,-500.0,0.00019843,2]
[347111355,1735501881502,-2108.31,0.00019843,2]
[347111356,1735501881511,-500.0,0.00019843,2]
[347111357,1735501881521,-841.79,0.00019843,2]
[347111358,1735501881531,-1480.24,0.00019843,2]
[347111359,1735501881544,-500.0,0.00019843,2]
[347111360,1735501881553,-500.0,0.00019843,2]
[347111361,1735501881563,-500.0,0.00019843,2]
[347111362,1735501881572,-500.0,0.00019843,2]
[347111363,1735501881582,-442.52,0.00019843,2]
[347111364,1735501881593,-651.63,0.00019843,2]
[347111365,1735501881603,-500.0,0.00019843,2]
[347111366,1735501881613,-500.0,0.00019843,2]
[347111367,1735501881626,-2369.92,0.00019843,2]
[347111368,1735501881636,-635.05,0.00019843,2]
[347111369,1735501881645,-583.56,0.00019843,2]
[347111370,1735501881655,-500.0,0.00019843,2]
[347111371,1735501881665,-500.0,0.00019843,2]
[347111372,1735501881675,-500.0,0.00019843,2]
[347111373,1735501881685,-501.86,0.00019843,2]
[347111374,1735501881697,-705.51,0.00019843,2]
[347111375,1735501881707,-3016.44,0.00019843,2]
[347111376,1735501881718,-965.04,0.00019843,2]
[347111377,1735501881727,-687.22,0.00019843,2]
[347111378,1735501881737,-2182.7,0.00019843,2]
[347111379,1735501881747,-500.0,0.00019843,2]
[347111380,1735501881757,-886.22,0.00019843,2]
[347111381,1735501881767,-1103.62,0.00019843,2]
[347111382,1735501881776,-1816.86,0.00019843,2]
[347111383,1735501881786,-5088.81,0.00019865,2]
[347111384,1735501881796,-7500.0,0.00019875,2]
[347111385,1735501881805,-39824.17,0.00019876,2]
[347111386,1735501881815,-1411.82568707,0.0001988,7]
[347111387,1735501881824,-1411.82568707,0.0001988,7]
[347111388,1735501881834,-1411.82568707,0.0001988,7]
[347111389,1735501881843,-1411.82568707,0.0001988,7]
[347111390,1735501881853,-1411.82568707,0.0001988,7]
[347111391,1735501881862,-1411.82568707,0.0001988,7]
[347111392,1735501881872,-1411.82568707,0.0001988,7]
[347111393,1735501881881,-1411.82568707,0.0001988,7]
[347111394,1735501881891,-1411.82568707,0.0001988,7]
[347111395,1735501881900,-1411.82568707,0.0001988,7]
[347111396,1735501881910,-1411.82568707,0.0001988,7]
[347111397,1735501881920,-1411.82568707,0.0001988,7]
[347111398,1735501881929,-1411.82568707,0.0001988,7]
[347111399,1735501881939,-1411.82568707,0.0001988,7]
[347111400,1735501881949,-1411.82568707,0.0001988,7]
[347111401,1735501881959,-1411.82568707,0.0001988,7]
[347111402,1735501881969,-1411.82568707,0.0001988,7]
[347111403,1735501881979,-1411.82568707,0.0001988,7]
[347111404,1735501881988,-1411.82568707,0.0001988,7]
[347111405,1735501881998,-1411.82,0.0001988,7]
[347111406,1735501882008,-10605.24514378,0.0001988,2]
[347111407,1735501882017,-207.82906832,0.0001988,2]
[347111408,1735501882027,-500.0,0.00019899,2]
[347111409,1735501882036,-9148.14671073,0.000199,2]
[347111410,1735501882405,-281.21244,0.000199,2]
[347111411,1735501882424,-500.0,0.00016555,2]
[347111412,1735501882434,-681.08180393,0.000199,2]
[347111413,1735501882923,-468.395,0.0001628,2]
[347111414,1735501882947,-31.605,0.0001628,2]
[347111415,1735501882958,-500.0,0.0001628,2]
[347111416,1735501882968,-500.0,0.00016281,2]
[347111417,1735501882978,-500.0,0.00016281,2]
[347111418,1735501882987,-500.0,0.00016356,2]
[347111419,1735501882996,-500.0,0.00016356,2]
[347111420,1735501883006,-500.0,0.00016358,2]
[347111421,1735501883015,-500.0,0.00016358,2]
[347111422,1735501883025,-174.14533046,0.00016455,2]
[347111423,1735501883034,-500.0,0.00016554,2]
[347111424,1735501883044,-500.0,0.00016554,2]
[347111425,1735501883053,-500.0,0.00016555,2]
[347111426,1735501883062,-500.0,0.00016555,2]
[347111427,1735501883072,-500.0,0.00016555,2]
[347111428,1735501883082,-500.0,0.0001663,2]
[347111429,1735501883091,-500.0,0.0001663,2]
[347111430,1735501883101,-500.0,0.00016632,2]
[347111431,1735501883110,-500.0,0.00016632,2]
[347111432,1735501883120,-500.0,0.00016828,2]
[347111433,1735501883130,-500.0,0.00016828,2]
[347111434,1735501883140,-500.0,0.00016829,2]
[347111435,1735501883149,-500.0,0.00016829,2]
[347111436,1735501883159,-500.0,0.00016829,2]
[347111437,1735501883169,-500.0,0.00016829,2]
[347111438,1735501883178,-500.0,0.00016829,2]
[347111439,1735501883187,-500.0,0.00016904,2]
[347111440,1735501883197,-586.46,0.00016905,2]
[347111441,1735501883207,-500.0,0.00016906,2]
[347111442,1735501883217,-500.0,0.00016906,2]
[347111443,1735501883226,-511.08,0.00017102,2]
[347111444,1735501883236,-426.84,0.00017102,2]
[347111445,1735501883246,-500.0,0.00017103,2]
[347111446,1735501883255,-500.0,0.00017103,2]
[347111447,1735501883265,-500.0,0.00017103,2]
[347111448,1735501883274,-500.0,0.00017103,2]
[347111449,1735501883284,-500.0,0.00017103,2]
[347111450,1735501883294,-500.0,0.00017178,2]
[347111451,1735501883304,-586.46,0.00017179,2]
[347111452,1735501883313,-500.0,0.0001718,2]
[347111453,1735501883323,-500.0,0.00017377,2]
[347111454,1735501883332,-500.0,0.00017377,2]
[347111455,1735501883341,-500.0,0.00017377,2]
[347111456,1735501883350,-500.0,0.00017377,2]
[347111457,1735501883359,-500.0,0.00017377,2]
[347111458,1735501883368,-385.09,0.00017452,2]
[347111459,1735501883377,-586.46,0.00017453,2]
[347111460,1735501883386,-500.0,0.00017454,2]
[347111461,1735501883395,-500.0,0.00017651,2]
[347111462,1735501883404,-500.0,0.00017651,2]
[347111463,1735501883414,-500.0,0.00017651,2]
[347111464,1735501883423,-500.0,0.00017651,2]
[347111465,1735501883433,-586.46,0.00017727,2]
[347111466,1735501883442,-560.41,0.00017728,2]
[347111467,1735501883452,-500.0,0.00017925,2]
[347111468,1735501883462,-500.0,0.00017925,2]
[347111469,1735501883473,-586.46,0.00018001,2]
[347111470,1735501883482,-500.0,0.00018199,2]
[347111471,1735501883492,-500.0,0.00018199,2]
[347111472,1735501883501,-586.46,0.00018275,2]
[347111473,1735501883511,-500.0,0.00018473,2]
[347111474,1735501883521,-152.44,0.00018473,2]
[347111475,1735501883530,-418.23,0.00018746,2]
[347111476,1735501883539,-500.0,0.00018747,2]
[347111477,1735501883549,-500.0,0.00019021,2]
[347111478,1735501883559,-500.0,0.00019295,2]
[347111479,1735501883568,-211.12,0.00019569,2]
[347111480,1735501883578,-183.83744926,0.00019879,2]
[347111481,1735501883588,-19574.10953434,0.000199,2]
[347111482,1735501883597,-6117.66,0.000199,2]
[347111483,1735501883607,-325.06,0.00019918,2]
[347111484,1735501883622,-515.51,0.00019918,2]
[347111485,1735501883631,-277.88,0.00019918,2]
[347111486,1735501883641,-754.31,0.00019918,2]
[347111487,1735501883651,-606.97,0.00019918,2]
[347111488,1735501883663,-472.47,0.00019918,2]
[347111489,1735501883673,-500.0,0.00019918,2]
[347111490,1735501883683,-500.0,0.00019918,2]
[347111491,1735501883694,-500.0,0.00019918,2]
[347111492,1735501883815,-398.74,0.00019918,2]
[347111493,1735501883826,-1814.14,0.00019919,2]
[347111494,1735501883836,-269.92,0.00019919,2]
[347111495,1735501883846,-2173.53,0.00019919,2]
[347111496,1735501883855,-500.0,0.00019919,2]
[347111497,1735501883865,-516.95,0.00019919,2]
[347111498,1735501883874,-538.76,0.00019919,2]
[347111499,1735501883884,-500.0,0.00019919,2]
[347111500,1735501883893,-500.0,0.00019919,2]
[347111501,1735501883903,-1499.28,0.00019919,2]
[347111502,1735501883913,-500.0,0.0001992,2]
[347111503,1735501883923,-500.0,0.0001992,2]
[347111504,1735501883934,-1311.98,0.0001992,2]
[347111505,1735501883944,-500.0,0.0001992,2]
[347111506,1735501883954,-1093.12,0.0001992,2]
[347111507,1735501883964,-500.0,0.00019922,2]
[347111508,1735501883974,-609.96,0.00019922,2]
[347111509,1735501883983,-1966.04,0.00019922,2]
[347111510,1735501883993,-2075.34,0.00019922,2]
[347111511,1735501884002,-567.22,0.00019922,2]
[347111512,1735501884012,-634.86,0.00019922,2]
[347111513,1735501884022,-796.83,0.00019922,2]
[347111514,1735501884032,-26178.0,0.00019945,2]
[347111515,1735501884041,-42900.0,0.00019945,2]
[347111516,1735501884051,-713.03344321,0.0001996,2]
[347111517,1735501884061,-1000.0,0.0001996,2]
[347111518,1735501884071,-400.0,0.0001997,2]
[347111519,1735501884080,-400.0,0.0001997,2]
[347111520,1735501884090,-7500.0,0.00019972,2]
[347111521,1735501884099,-41416.36,0.00019973,2]
[347111522,1735501884110,-172.666702,0.00019976,2]
[347111523,1735501884119,-24113.3508525,0.00019976,2]
[347111524,1735501884129,-10396.3053583,0.00019976,2]
[347111525,1735501884138,-150.0,0.00019979,2]
[347111526,1735501884148,-1644.32,0.00019979,2]
[347111527,1735501884158,-500.0,0.00019979,2]
[347111528,1735501884167,-1185.67,0.00019979,2]
[347111529,1735501884176,-1185.67,0.00019979,2]
[347111530,1735501884185,-1185.67,0.00019979,2]
[347111531,1735501884195,-1185.67,0.00019979,2]
[347111532,1735501884205,-1185.67,0.00019979,2]
[347111533,1735501884215,-1185.67,0.00019979,2]
[347111534,1735501884225,-1185.67,0.00019979,2]
[347111535,1735501884235,-1185.67,0.00019979,2]
[347111536,1735501884244,-1185.67,0.00019979,2]
[347111537,1735501884254,-1185.67,0.00019979,2]
[347111538,1735501884264,-1185.67,0.00019979,2]
[347111539,1735501884274,-1185.67,0.00019979,2]
[347111540,1735501884283,-1185.67,0.00019979,2]
[347111541,1735501884293,-1185.67,0.00019979,2]
[347111542,1735501884303,-1185.67,0.00019979,2]
[347111543,1735501884313,-1185.71,0.00019979,2]
[347111544,1735501884323,-500.0,0.00019979,2]
[347111545,1735501884332,-260.56,0.00019979,2]
[347111546,1735501884342,-7500.0,0.00019979,2]
[347111547,1735501884351,-7500.0,0.00019979,2]
[347111548,1735501884361,-7500.0,0.00019979,2]
[347111549,1735501884370,-1103.6497081,0.0001998,2]
[347111550,1735501884380,-159950.51842277,0.0001998,2]
[347111551,1735501884390,-2307978.23394463,0.0001998,2]
[347111552,1735501884399,-976122.87196762,0.0001998,2]
[347111553,1735501884556,-500.0,0.0001628,2]
[347111554,1735501884566,-500.0,0.0001628,2]
[347111555,1735501884576,-500.0,0.00016281,2]
[347111556,1735501884585,-500.0,0.00016281,2]
[347111557,1735501884595,-500.0,0.00016281,2]
[347111558,1735501884604,-500.0,0.00016358,2]
[347111559,1735501884614,-500.0,0.00016554,2]
[347111560,1735501884625,-500.0,0.00016555,2]
[347111561,1735501884635,-500.0,0.00016555,2]
[347111562,1735501884644,-500.0,0.00016632,2]
[347111563,1735501884653,-500.0,0.00016828,2]
[347111564,1735501884663,-500.0,0.00016829,2]
[347111565,1735501884673,-500.0,0.00016829,2]
[347111566,1735501884683,-254.52744169,0.00016906,2]
[347111567,1735501884692,-508.54,0.00017103,2]
[347111568,1735501884702,-500.0,0.00017651,2]
[347111569,1735501884711,-500.0,0.00017925,2]
[347111570,1735501884723,-500.0,0.00017925,2]
[347111571,1735501884733,-500.0,0.00018199,2]
[347111572,1735501884743,-586.46,0.00018549,2]
[347111573,1735501884754,-8916.48414248,0.0001998,2]
[347111574,1735501884973,-596.831,0.00016181,2]
[347111575,1735501884983,-500.0,0.00016281,2]
[347111576,1735501884993,-500.0,0.00016281,2]
[347111577,1735501885003,-406.04095263,0.00016356,2]
[347111578,1735501888748,500.0,0.00019979,120]
[347111579,1735501888834,500.0,0.00020007,120]
[347111580,1735501888925,500.0,0.00020034,120]
[347111581,1735501889015,500.0,0.00020061,120]
[347111582,1735501889097,500.0,0.00020089,120]
[347111583,1735501889173,500.0,0.00020116,120]
[347111584,1735501889241,500.0,0.00020144,120]
[347111585,1735501889316,500.0,0.00020171,120]
[347111586,1735501889382,500.0,0.00020198,120]
[347111587,1735501889497,500.0,0.00020226,120]
[347111588,1735501889578,251.11,0.00020253,120]
[347111590,1735501999526,500.0,0.00022264,120]
[347111591,1735502001772,2000.0,0.00022264,120]
[347111592,1735502028887,200.0,0.00022264,120]
[347111593,1735502404248,500.0,0.00017825,120]
[347111594,1735502404595,500.0,0.00017852,120]
[347111595,1735502404885,500.0,0.0001788,120]
[347111596,1735502405151,250.37,0.00017907,120]
[347111598,1735502579055,30000.0,0.00024953,120]
[347111599,1735502599536,2000.0,0.00022472,120]
[347111600,1735502700131,30000.0,0.00024953,120]
[347111601,1735502756561,12319.00274425,0.00024953,120]
[347111602,1735502822185,5020.97822784,0.00024953,120]
[347111609,1735503031890,-450.0,0.00012,2]
[347111610,1735503031899,-377.28,0.00013487,2]
[347111611,1735503031909,-166.58,0.00013699,2]
[347111612,1735503031918,-500.0,0.00014,2]
[347111613,1735503031928,-916.75,0.00015283,2]
[347111614,1735503031937,-200.0,0.00015401,2]
[347111615,1735503031947,-250.0,0.00015405,2]
[347111616,1735503031956,-130.7466916,0.00015411,2]
[347111617,1735503031968,-119.2533084,0.00015411,2]
[347111618,1735503031977,-392.45,0.00015484,2]
[347111619,1735503031987,-4000.0,0.0001549,2]
[347111620,1735503031996,-377.28,0.00015751,2]
[347111621,1735503032005,-239.74,0.00015896,2]
[347111622,1735503032015,-150.0,0.00015906,2]
[347111623,1735503032024,-550.0,0.00016,2]
[347111624,1735503032033,-500.0,0.00016164,2]
[347111625,1735503032042,-500.0,0.00016164,2]
[347111626,1735503032052,-1171.0,0.00016164,2]
[347111627,1735503032061,-173.92207132,0.0001618,2]
[347111628,1735503032073,-594.18807962,0.0001618,2]
[347111629,1735503032083,-165.8322718,0.00016181,2]
[347111630,1735503032092,-229.09966932,0.00016181,2]
[347111631,1735503032104,-3154.36003068,0.00016181,2]
[347111632,1735503032113,-4202.95359759,0.00016181,2]
[347111633,1735503032124,-1943.98,0.00016181,2]
[347111634,1735503032143,-855.79547624,0.00016181,2]
[347111635,1735503032156,-3400.00000001,0.00016181,2]
[347111636,1735503032176,-1350.31306839,0.00016181,2]
[347111637,1735503032189,-725.291,0.00016181,2]
[347111638,1735503032207,-834.6735,0.00016181,2]
[347111639,1735503032219,-673.203376,0.00016181,2]
[347111640,1735503032230,-345.919,0.00016181,2]
[347111641,1735503032248,-2137.83260465,0.00016181,2]
[347111642,1735503032260,-256.92624534,0.00016181,2]
[347111643,1735503032291,-2289.76007563,0.00016181,2]
[347111644,1735503032302,-36538.35205615,0.00016181,2]
[347111645,1735503032312,-500.0,0.00016279,2]
[347111646,1735503032321,-500.0,0.00016279,2]
[347111647,1735503032331,-500.0,0.0001628,2]
[347111648,1735503032340,-500.0,0.0001628,2]
[347111649,1735503032349,-500.0,0.0001628,2]
[347111650,1735503032359,-500.0,0.0001628,2]
[347111651,1735503032369,-500.0,0.0001628,2]
[347111653,1735503032378,-500.0,0.0001628,2]
[347111655,1735503032387,-500.0,0.0001628,2]
[347111657,1735503032395,-500.0,0.0001628,2]
[347111659,1735503032405,-500.0,0.0001628,2]
[347111661,1735503032415,-500.0,0.0001628,2]
[347111663,1735503032424,-500.0,0.0001628,2]
[347111665,1735503032434,-500.0,0.0001628,2]
[347111667,1735503032443,-500.0,0.0001628,2]
[347111669,1735503032452,-500.0,0.0001628,2]
[347111671,1735503032461,-500.0,0.0001628,2]
[347111673,1735503032471,-500.0,0.0001628,2]
[347111675,1735503032479,-500.0,0.0001628,2]
[347111677,1735503032489,-500.0,0.0001628,2]
[347111679,1735503032498,-500.0,0.0001628,2]
[347111681,1735503032508,-156.59892262,0.0001628,2]
[347111683,1735503032521,-343.40107738,0.0001628,2]
[347111685,1735503032530,-500.0,0.0001628,2]
[347111687,1735503032540,-500.0,0.0001628,2]
[347111689,1735503032550,-500.0,0.0001628,2]
[347111691,1735503032559,-86.22660652,0.0001628,2]
[347111694,1735503032570,-413.77339348,0.0001628,2]
[347111696,1735503032579,-424.91350383,0.0001628,2]
[347111698,1735503032588,-500.0,0.0001628,2]
[347111700,1735503032597,-620.7,0.0001628,2]
[347111701,1735503032606,-201.86158398,0.0001628,2]
[347111704,1735503032616,-500.0,0.0001628,2]
[347111706,1735503032625,-500.0,0.0001628,2]
[347111707,1735503032634,-500.0,0.0001628,2]
[347111709,1735503032644,-500.0,0.0001628,2]
[347111711,1735503032653,-503.24,0.0001628,2]
[347111713,1735503032662,-500.0,0.0001628,2]
[347111714,1735503032671,-500.0,0.0001628,2]
[347111715,1735503032681,-500.0,0.0001628,2]
[347111716,1735503032690,-500.0,0.0001628,2]
[347111717,1735503032699,-500.0,0.0001628,2]
[347111718,1735503032708,-500.0,0.0001628,2]
[347111719,1735503032717,-500.0,0.0001628,2]
[347111720,1735503032727,-500.0,0.0001628,2]
[347111721,1735503032736,-500.0,0.0001628,2]
[347111722,1735503032746,-500.0,0.0001628,2]
[347111723,1735503032755,-500.0,0.0001628,2]
[347111724,1735503032764,-500.0,0.0001628,2]
[347111725,1735503032773,-500.0,0.0001628,2]
[347111726,1735503032782,-500.0,0.0001628,2]
[347111727,1735503032791,-500.0,0.0001628,2]
[347111728,1735503032801,-500.0,0.0001628,2]
[347111729,1735503032811,-500.0,0.0001628,2]
[347111730,1735503032821,-500.0,0.0001628,2]
[347111731,1735503032830,-500.0,0.0001628,2]
[347111732,1735503032840,-500.0,0.0001628,2]
[347111733,1735503032849,-500.0,0.0001628,2]
[347111734,1735503032858,-500.0,0.0001628,2]
[347111735,1735503032867,-500.0,0.0001628,2]
[347111736,1735503032877,-500.0,0.0001628,2]
[347111737,1735503032886,-500.0,0.0001628,2]
[347111738,1735503032896,-346.09971579,0.0001628,2]
[347111739,1735503032905,-500.0,0.0001628,2]
[347111740,1735503032914,-500.0,0.0001628,2]
[347111741,1735503032924,-500.0,0.0001628,2]
[347111742,1735503032932,-500.0,0.0001628,2]
[347111743,1735503032942,-500.0,0.0001628,2]
[347111744,1735503032951,-500.0,0.0001628,2]
[347111745,1735503032961,-500.0,0.0001628,2]
[347111746,1735503032970,-500.0,0.0001628,2]
[347111747,1735503032979,-500.0,0.0001628,2]
[347111748,1735503032988,-289.67101649,0.0001628,2]
[347111749,1735503032998,-460.31156821,0.0001628,2]
[347111750,1735503033007,-500.0,0.0001628,2]
[347111751,1735503033016,-500.0,0.0001628,2]
[347111752,1735503033026,-500.0,0.0001628,2]
[347111753,1735503033035,-500.0,0.0001628,2]
[347111754,1735503033045,-500.0,0.0001628,2]
[347111755,1735503033055,-500.0,0.0001628,2]
[347111756,1735503033065,-77.05796619,0.0001628,2]
[347111757,1735503033079,-422.94203381,0.0001628,2]
[347111758,1735503033088,-118.40296619,0.0001628,2]
[347111759,1735503033099,-381.59703381,0.0001628,2]
[347111760,1735503033109,-500.0,0.0001628,2]
[347111761,1735503033120,-500.0,0.0001628,2]
[347111762,1735503033129,-500.0,0.0001628,2]
[347111763,1735503033139,-500.0,0.0001628,2]
[347111764,1735503033149,-500.0,0.0001628,2]
[347111765,1735503033158,-500.0,0.0001628,2]
[347111766,1735503033171,-500.0,0.0001628,2]
[347111767,1735503033181,-500.0,0.0001628,2]
[347111768,1735503033191,-500.0,0.0001628,2]
[347111769,1735503033200,-500.0,0.0001628,2]
[347111770,1735503033211,-500.0,0.0001628,2]
[347111771,1735503033220,-500.0,0.0001628,2]
[347111772,1735503033229,-498.40296608,0.0001628,2]
[347111773,1735503033248,-1.59703392,0.0001628,2]
[347111774,1735503033258,-500.0,0.0001628,2]
[347111775,1735503033267,-500.0,0.0001628,2]
[347111776,1735503033276,-500.0,0.0001628,2]
[347111777,1735503033286,-500.0,0.0001628,2]
[347111778,1735503033295,-500.0,0.0001628,2]
[347111779,1735503033304,-500.0,0.0001628,2]
[347111780,1735503033314,-500.0,0.0001628,2]
[347111781,1735503033323,-500.0,0.0001628,2]
[347111782,1735503033333,-480.57419452,0.0001628,2]
[347111783,1735503033345,-500.0,0.0001628,2]
[347111784,1735503033354,-500.0,0.0001628,2]
[347111785,1735503033364,-500.0,0.0001628,2]
[347111786,1735503033373,-500.0,0.0001628,2]
[347111787,1735503033383,-500.0,0.0001628,2]
[347111788,1735503033392,-500.0,0.0001628,2]
[347111789,1735503033401,-500.0,0.0001628,2]
[347111790,1735503033410,-500.0,0.0001628,2]
[347111791,1735503033420,-500.0,0.0001628,2]
[347111792,1735503033429,-500.0,0.0001628,2]
[347111793,1735503033438,-500.0,0.0001628,2]
[347111794,1735503033447,-8.61683609,0.0001628,2]
[347111795,1735503033459,-491.38316391,0.0001628,2]
[347111796,1735503033470,-500.0,0.0001628,2]
[347111797,1735503033480,-155.45940321,0.0001628,2]
[347111798,1735503033491,-344.54059679,0.0001628,2]
[347111799,1735503033501,-500.0,0.0001628,2]
[347111800,1735503033511,-500.0,0.0001628,2]
[347111801,1735503033520,-330.88440321,0.0001628,2]
[347111805,1735503037798,-500.0,0.00016279,2]
[347111806,1735503037807,-500.0,0.00016279,2]
[347111807,1735503037817,-500.0,0.00016279,2]
[347111808,1735503037827,-169.11559679,0.0001628,2]
[347111809,1735503037836,-500.0,0.0001628,2]
[347111811,1735503037846,-500.0,0.0001628,2]
[347111812,1735503037856,-121.25649943,0.0001628,2]
[347111813,1735503037869,-378.74350057,0.0001628,2]
[347111814,1735503037878,-500.0,0.0001628,2]
[347111815,1735503037887,-294.81,0.0001628,2]
[347111816,1735503037897,-500.0,0.0001628,2]
[347111817,1735503037908,-500.0,0.0001628,2]
[347111818,1735503037917,-500.0,0.0001628,2]
[347111819,1735503037926,-500.0,0.0001628,2]
[347111820,1735503037936,-500.0,0.0001628,2]
[347111821,1735503037945,-500.0,0.0001628,2]
[347111822,1735503037955,-500.0,0.0001628,2]
[347111823,1735503037964,-192.24546695,0.0001628,2]
[347111824,1735503037977,-307.75453305,0.0001628,2]
[347111825,1735503037986,-500.0,0.0001628,2]
[347111826,1735503037995,-500.0,0.0001628,2]
[347111827,1735503038004,-500.0,0.0001628,2]
[347111828,1735503038013,-500.0,0.0001628,2]
[347111829,1735503038023,-500.0,0.0001628,2]
[347111830,1735503038032,-500.0,0.0001628,2]
[347111831,1735503038041,-500.0,0.0001628,2]
[347111832,1735503038051,-500.0,0.0001628,2]
[347111833,1735503038061,-500.0,0.0001628,2]
[347111834,1735503038070,-500.0,0.0001628,2]